Workbook

Sheet Get Creative
A1: Operation Get Creative | F1: DRAFT | H1: Created by SBAC Member
A3: Inputs | F3: Outputs
A4: Example Property Value | D4: 700000
F5: Fiscal Year | G5: 2025 | H5: =G5+1 -> 2026 | I5: 2027 | J5: 2028 | K5: 2029 | L5: 2030 | M5: 2031 | N5: 2032 | O5: 2033 | P5: 2034 | Q5: 2035
A6: School bond principle | D6: 114500000
A7: Private fundraising to reduce bond size | D7: 5000000 | F7: Property Value | G7: =D4 -> 700000 | H7: =G7*(1+$D$15) -> 700000 | I7: 700000 | J7: 700000 | K7: 700000 | L7: 700000 | M7: 700000 | N7: 700000 | O7: 700000 | P7: 700000 | Q7: 700000
A8: Add'l fundraising to reduce peak inc by ~1%? | D8: Y | F8: Taxes, no bond | G8: =G7*G18/1000 -> 7700 | H8: 7968.159204 | I8: 8245.657286 | J8: 8532.81948 | K8: 8829.982347 | L8: 9137.49417 | M8: 9455.71536 | N8: 9785.01888 | O8: 10125.79068 | P8: 10478.43016 | Q8: 10843.35061
A9: Fundraising to reduce peak Inc by ~1% more? | D9: Y | F9: Taxes, bond | G9: =G7*G19/1000 -> 7700 | H9: 8422.147495 | I9: 9057.925499 | J9: 9371.292413 | K9: 9694.378972 | L9: 10027.53596 | M9: 10371.12575 | N9: 10725.52324 | O9: 11091.11684 | P9: 11438.9537 | Q9: 11799.09542
A10: Dedidated revenue stream for bond payment | D10: 500000 | F10: % Inc over no bond | G10: =(G9-G8)/G8 -> 0 | H10: 0.05697530377 | I10: 0.09850860702 | J10: 0.09826446411 | K10: 0.09789335818 | L10: 0.0974054569 | M10: 0.09681027382 | N10: 0.09611676496 | O10: 0.09533340995 | P10: 0.09166674034 | Q10: 0.08814109648
A11: 2025 Town Budget | D11: 41800000 | F11: Bond as % of taxes | H11: =(H9-H8)/H9 -> 0.05390410123 | I11: 0.08967486135 | J11: 0.08947249713 | K11: 0.08916472393 | L11: 0.08875977086 | M11: 0.08826528719 | N11: 0.08768843615 | O11: 0.08703597378 | P11: 0.08396952747 | Q11: 0.08100153258
A12: 2025 Town Valuation | D12: 3800000000 | F12: YoY Tax Inc w/ bond | H12: =(H9-G9)/G9 -> 0.09378538898 | I12: 0.07548882327 | J12: 0.03459588119 | K12: 0.03447620076 | L12: 0.03436599641 | M12: 0.0342646279 | N12: 0.03417155429 | O12: 0.03408631803 | P12: 0.03136175229 | Q12: 0.0314837999
A13: YoY Operational Budget % Increase | D13: 0.04
A14: YoY Town Assessment % Increase | D14: 0.005 | F14: Town Valuation | G14: =D12 -> 3800000000 | H14: =G14*(1+$D$14) -> 3819000000 | I14: 3838095000 | J14: 3857285475 | K14: 3876571902 | L14: 3895954762 | M14: 3915434536 | N14: 3935011708 | O14: 3954686767 | P14: 3974460201 | Q14: 3994332502
A15: YoY Property Assessment % Increase | D15: 0 | F15: Town op budget | G15: =D11 -> 41800000 | H15: =G15*(1+$D$13) -> 43472000 | I15: 45210880 | J15: 47019315.2 | K15: 48900087.81 | L15: 50856091.32 | M15: 52890334.97 | N15: 55005948.37 | O15: 57206186.31 | P15: 59494433.76 | Q15: 61874211.11
F16: Bond debt service | H16: =($H$46)-H22-H23-H26 -> 2476830.406 | I16: =($H$46*2)-I22-I23-I26 -> 4453660.811 | J16: 4620327.811 | K16: 4786993.811 | L16: 4953660.811 | M16: 5120327.811 | N16: 5286993.811 | O16: 5453660.811 | P16: 5453660.811 | Q16: 5453660.811
F17: Total revenue | G17: =G15+G16 -> 41800000 | H17: 45948830.41 | I17: 49664540.81 | J17: 51639643.01 | K17: 53687081.62 | L17: 55809752.13 | M17: 58010662.78 | N17: 60292942.18 | O17: 62659847.12 | P17: 64948094.57 | Q17: 67327871.92
F18: Mill rate, no bond | G18: =1000*G17/G14 -> 11 | H18: =1000*H15/H14 -> 11.38308458 | I18: 11.77951041 | J18: 12.18974211 | K18: 12.6142605 | L18: 13.0535631 | M18: 13.5081648 | N18: 13.9785984 | O18: 14.46541526 | P18: 14.96918594 | Q18: 15.49050087
F19: Mill rate, bond | G19: =1000*G17/G14 -> 11 | H19: 12.03163928 | I19: 12.93989357 | J19: 13.38756059 | K19: 13.84911282 | L19: 14.32505138 | M19: 14.81589393 | N19: 15.32217606 | O19: 15.84445262 | P19: 16.34136242 | Q19: 16.85585061
F21: Initial fundraising | H21: =D7 -> 5000000
F22: Fundraising 1st% | I22: =IF(D8="Y",500000,0) -> 500000 | J22: =IF(D8="Y",333333,0) -> 333333 | K22: =IF(D8="Y",166667,0) -> 166667
F23: Fundraising 2nd% | I23: 500000 | J23: =IF(D9="Y",500000,0) -> 500000 | K23: =IF(D9="Y",500000,0) -> 500000 | L23: =IF(D9="Y",500000,0) -> 500000 | M23: =IF(D9="Y",333333,0) -> 333333 | N23: =IF(D9="Y",166667,0) -> 166667
F24: Total Fundraising | H24: =SUM(H21:H23) -> 5000000 | I24: 1000000 | J24: 833333 | K24: 666667 | L24: 500000 | M24: 333333 | N24: 166667 | O24: 0 | P24: 0 | Q24: 0
F26: Dedicated revenue | H26: =$D$10 -> 500000 | I26: =H26 -> 500000 | J26: 500000 | K26: 500000 | L26: 500000 | M26: 500000 | N26: 500000 | O26: 500000 | P26: 500000 | Q26: 500000
F29: Private Funds Total | G29: =SUM(G24:Q24) -> 8500000
A39: Debt Calculator
A40: Assumptions:
A41: Two bonds: Half starts repayment in 2026, Half starts in 2027
A42: School bond principle from Inputs above
A44: Inputs | F44: Outputs
A45: Annual interest rate | C45: 0.035 | F45: Payment (1/2 P) | H45: =ABS(PMT(C45/C47,C46*C47,(D6-D7)/2)) -> 2976830.406
A46: Loan term (years) | C46: 30 | F46: Payment to count | H46: =H45*C48 -> 2976830.406
A47: Payments per year | C47: 1
A48: Payments to group | C48: 1
